[Event "ESP-chT 2nd Division 2019"]
[Site "Linares"]
[Date "2019.08.23"]
[Round "7.28"]
[White "Jimenez Martinez, Jose Vicente"]
[Black "Jimenez Ruano, Adrian"]
[Result "1/2-1/2"]
[ECO "D38"]
[WhiteElo "2264"]
[BlackElo "2278"]
[Annotator "ChessBase"]
[PlyCount "60"]
[EventDate "2019.08.19"]
[EventType "team-tourn"]
[EventCountry "ESP"]
[SourceTitle "playchess.com"]
[Source "ChessBase"]
[SourceQuality "1"]
[TimeControl "5400+30"]

1. d4 {[%emt 0:00:00]} d5 {[%emt 0:00:00]} 2. c4 {[%emt 0:00:05]} e6 {[%emt 0:00:00]} 3. Nf3 {[%emt 0:00:05]} Nf6 {[%emt 0:00:00]} 4. Nc3 {[%emt 0:00:06]} Bb4 {[%emt 0:00:00]} 5. Bg5 {[%emt 0:13:49]} h6 {[%emt 0:00:19]} 6. Bxf6 {[%emt 0:01:40]} Qxf6 {[%emt 0:00:05]} 7. Qb3 {[%emt 0:03:29]} c5 {[%emt 0:00:48]} 8. a3 {[%emt 0:06:12]} Bxc3+ {[%emt 0:01:27]} 9. bxc3 {[%emt 0:00:11]} cxd4 {[%emt 0:02:42]} 10. cxd4 {[%emt 0:03:43]} dxc4 {[%emt 0:00:10]} 11. Qxc4 {[%emt 0:00:15]} O-O {[%emt 0:00:07]} 12. e3 {[%emt 0:02:05]} b6 {[%emt 0:01:50]} 13. Qc7 {[%emt 0:00:21]} Ba6 {[%emt 0:00:46]} 14. Bxa6 {[%emt 0:01:33]} Nxa6 {[%emt 0:00:16]} 15. Qe5 {[%emt 0:00:08]} Qe7 {[%emt 0:02:03]} 16. O-O {[%emt 0:00:41]} Rac8 {[%emt 0:00:24]} 17. a4 {[%emt 0:01:53]} Nb4 {[%emt 0:01:51]} 18. Qb5 {[%emt 0:01:52]} Nc6 {[%emt 0:01:44]} 19. Rfc1 {[%emt 0:01:41]} Na5 {[%emt 0:00:07]} 20. Qa6 {[%emt 0:14:46]} Rc7 {[%emt 0:14:59]} 21. h3 {[%emt 0:05:55]} Nb3 {[%emt 0:01:13]} 22. Rxc7 {[%emt 0:00:11]} Qxc7 {[%emt 0:00:02]} 23. Rb1 {[%emt 0:00:10]} Na5 {[%emt 0:03:02]} 24. Rd1 {[%emt 0:05:02]} Qc2 {[%emt 0:05:08]} 25. Ra1 {[%emt 0:01:25]} Qc3 {[%emt 0:01:16]} 26. Rd1 {[%emt 0:01:22]} Qc2 {[%emt 0:00:03]} 27. Ra1 {[%emt 0:01:41]} Qc3 {[%emt 0:00:38]} 28. Rd1 {[%emt 0:00:37]} Qc2 {[%emt 0:00:04]} 29. Ra1 {[%emt 0:00:09]} Qc3 {[%emt 0:00:03]} 30. Rd1 {[%emt 0:00:08]} Qc2 1/2-1/2

[Event "ESP-chT 2nd Division 2019"]
[Site "Linares"]
[Date "2019.08.23"]
[Round "7.29"]
[White "Sanchez Lopez, Juan Manuel"]
[Black "Alvarez Serrano, Carlos"]
[Result "1-0"]
[ECO "A13"]
[WhiteElo "2084"]
[BlackElo "2244"]
[Annotator "ChessBase"]
[PlyCount "59"]
[EventDate "2019.08.19"]
[EventType "team-tourn"]
[EventCountry "ESP"]
[SourceTitle "playchess.com"]
[Source "ChessBase"]
[SourceQuality "1"]
[TimeControl "5400+30"]

1. c4 {[%emt 0:04:04]} e6 {[%emt 0:02:25]} 2. e4 {[%emt 0:00:09]} c5 {[%emt 0:00:00]} 3. Nc3 {[%emt 0:00:10]} Nc6 {[%emt 0:00:04]} 4. g3 {[%emt 0:00:07]} Nd4 {[%emt 0:00:08]} 5. Bg2 {[%emt 0:00:08]} Ne7 {[%emt 0:00:04]} 6. d3 {[%emt 0:01:17]} Nec6 {[%emt 0:00:10]} 7. f4 {[%emt 0:00:19]} g6 {[%emt 0:00:07]} 8. Nf3 {[%emt 0:02:43]} Bg7 {[%emt 0:00:20]} 9. O-O {[%emt 0:01:04]} O-O {[%emt 0:00:01]} 10. Be3 {[%emt 0:05:00]} d6 {[%emt 0:00:19]} 11. Kh1 {[%emt 0:01:05]} Rb8 {[%emt 0:02:42]} 12. Bg1 {[%emt 0:00:43]} a6 {[%emt 0:05:49]} 13. Nxd4 {[%emt 0:02:29]} Nxd4 {[%emt 0:00:35]} 14. Ne2 {[%emt 0:00:41]} b5 {[%emt 0:09:57]} 15. Nxd4 {[%emt 0:01:26]} cxd4 {[%emt 0:00:09]} 16. cxb5 {[%emt 0:01:31]} Rxb5 {[%emt 0:01:23]} 17. b3 {[%emt 0:00:38]} Bb7 {[%emt 0:01:47]} 18. Rc1 {[%emt 0:00:28]} Qa5 {[%emt 0:00:27]} 19. Rf2 {[%emt 0:00:45]} f5 {[%emt 0:03:34]} 20. Rfc2 {[%emt 0:02:32]} fxe4 {[%emt 0:00:27]} 21. dxe4 e5 22. Qg4 {[%emt 0:14:50]} d3 {[%emt 0:03:03]} 23. Qe6+ {[%emt 0:00:34]} Kh8 {[%emt 0:00:00]} 24. Rc7 {[%emt 0:00:44]} d2 {[%emt 0:00:44]} 25. Qd7 {[%emt 0:03:26]} Rg8 {[%emt 0:02:48]} 26. Rd1 {[%emt 0:01:42]} Ba8 {[%emt 0:15:41]} 27. Qxd6 {[%emt 0:16:15]} Qxa2 {[%emt 0:01:35]} 28. Rxd2 {[%emt 0:15:07]} Qxb3 {[%emt 0:00:18]} 29. Rd3 {[%emt 0:01:29]} Qb1 {[%emt 0:00:08]} 30. Rxg7 {[%emt 0:00:38]} 1-0

[Event "ESP-chT 2nd Division 2019"]
[Site "Linares"]
[Date "2019.08.23"]
[Round "7.30"]
[White "Jimenez Fernandez, Rebeca"]
[Black "Catalan Gasque, Noelia"]
[Result "1-0"]
[ECO "C00"]
[WhiteElo "1928"]
[BlackElo "1789"]
[Annotator "NA"]
[PlyCount "39"]
[EventDate "2019.08.19"]
[EventType "team-tourn"]
[EventCountry "ESP"]
[SourceTitle "playchess.com"]
[Source "ChessBase"]
[SourceQuality "1"]
[TimeControl "5400+30"]

1. e4 {[%emt 0:00:00]} e6 {[%emt 0:00:00]} 2. d3 {[%emt 0:00:00]} d5 {[%emt 0:00:00]} 3. Nd2 {[%emt 0:00:00]} c5 {[%emt 0:01:05]} 4. Ngf3 {[%emt 0:00:00]} Nc6 {[%emt 0:01:14]} 5. g3 {[%emt 0:00:00]} Bd6 {[%emt 0:03:37]} 6. Bg2 {[%emt 0:00:09]} b6 {[%emt 0:04:07]} 7. O-O {[%emt 0:00:18]} Bb7 {[%emt 0:02:25]} 8. Re1 {[%emt 0:00:22]} dxe4 {[%emt 0:03:36]} 9. dxe4 {[%emt 0:00:38]} Ne5 {[%emt 0:04:07]} 10. Nxe5 {[%emt 0:12:45]} Bxe5 {[%emt 0:00:13]} 11. c3 {[%emt 0:00:12]} b5 {[%emt 0:13:18]} 12. f4 {[%emt 0:02:37]} Bc7 {[%emt 0:00:15]} 13. c4 {[%emt 0:01:18]} a6 {[%emt 0:02:02]} 14. Qe2 {[%emt 0:08:16]} Bc6 {[%emt 0:01:58]} 15. Nb3 {[%emt 0:02:05]} bxc4 {[%emt 0:03:49]} 16. Nxc5 {[%emt 0:04:46]} Bb6 {[%emt 0:05:13]} 17. Be3 {[%emt 0:00:53]} Bxc5 {[%emt 0:02:05]} 18. Bxc5 {[%emt 0:00:29]} Qd3 {[%emt 0:00:41]} 19. Qg4 {[%emt 0:04:41]} Qd8 {[%emt 0:07:12]} 20. Qxg7 1-0

[Event "ESP-chT 2nd Division 2019"]
[Site "Linares"]
[Date "2019.08.23"]
[Round "7.31"]
[White "Santamaria Fernandez, Guillermo"]
[Black "Portela Peleteiro, Alberto"]
[Result "1/2-1/2"]
[ECO "B24"]
[WhiteElo "2177"]
[BlackElo "2375"]
[Annotator "ChessBase"]
[PlyCount "69"]
[EventDate "2019.08.19"]
[EventType "team-tourn"]
[EventCountry "ESP"]
[SourceTitle "playchess.com"]
[Source "ChessBase"]
[SourceQuality "1"]
[TimeControl "5400+30"]

1. e4 {[%emt 0:00:00]} c5 {[%emt 0:03:12]} 2. Nc3 {[%emt 0:00:00]} Nc6 {[%emt 0:00:12]} 3. Bb5 {[%emt 0:00:04]} Nd4 {[%emt 0:00:05]} 4. Nf3 {[%emt 0:00:05]} Nxb5 {[%emt 0:00:18]} 5. Nxb5 {[%emt 0:00:06]} d6 {[%emt 0:01:11]} 6. d4 {[%emt 0:00:28]} a6 {[%emt 0:03:36]} 7. Nc3 {[%emt 0:00:05]} cxd4 {[%emt 0:04:58]} 8. Qxd4 Nf6 {[%emt 0:00:05]} 9. Bg5 {[%emt 0:06:40]} h6 {[%emt 0:00:04]} 10. Bh4 {[%emt 0:03:29]} g5 {[%emt 0:03:24]} 11. Bg3 {[%emt 0:00:07]} Bg7 {[%emt 0:00:10]} 12. O-O-O {[%emt 0:07:01]} Nh5 {[%emt 0:05:41]} 13. Qd2 {[%emt 0:06:08]} Nxg3 {[%emt 0:06:50]} 14. hxg3 {[%emt 0:00:17]} Bg4 {[%emt 0:00:05]} 15. Nd5 {[%emt 0:03:19]} Rc8 {[%emt 0:03:24]} 16. Ne3 {[%emt 0:10:25]} Be6 {[%emt 0:07:52]} 17. Nd4 {[%emt 0:03:32]} Qb6 {[%emt 0:14:56]} 18. b3 {[%emt 0:01:44]} Qc5 {[%emt 0:01:15]} 19. Kb1 {[%emt 0:05:29]} Qe5 {[%emt 0:00:14]} 20. Qd3 {[%emt 0:02:29]} O-O {[%emt 0:11:13]} 21. f4 {[%emt 0:05:04]} Qxd4 {[%emt 0:07:16]} 22. Qxd4 {[%emt 0:00:40]} Bxd4 {[%emt 0:00:02]} 23. Rxd4 {[%emt 0:00:07]} Rc3 {[%emt 0:00:26]} 24. Rd3 {[%emt 0:04:17]} Rxd3 {[%emt 0:00:17]} 25. cxd3 {[%emt 0:00:03]} Kg7 {[%emt 0:01:46]} 26. f5 {[%emt 0:04:26]} Bd7 {[%emt 0:00:45]} 27. Kb2 {[%emt 0:01:33]} e6 {[%emt 0:08:27]} 28. g4 {[%emt 0:02:34]} Bc6 {[%emt 0:01:36]} 29. Kc3 {[%emt 0:12:46]} Rc8 {[%emt 0:00:00]} 30. Kd2 {[%emt 0:00:22]} d5 {[%emt 0:00:06]} 31. exd5 {[%emt 0:00:18]} Bxd5 {[%emt 0:00:21]} 32. Nxd5 {[%emt 0:01:47]} exd5 {[%emt 0:00:01]} 33. Re1 {[%emt 0:01:08]} Kf6 {[%emt 0:01:22]} 34. d4 {[%emt 0:00:40]} Rc7 {[%emt 0:03:46]} 35. Kd3 {[%emt 0:04:11] Ke5 Ke4+} 1/2-1/2

[Event "ESP-chT 2nd Division 2019"]
[Site "Linares"]
[Date "2019.08.23"]
[Round "7.33"]
[White "Garcia Ortega, Jesus Angel"]
[Black "Fernandez Lopez, Ruben"]
[Result "1-0"]
[ECO "B20"]
[WhiteElo "2109"]
[BlackElo "2242"]
[Annotator "ChessBase"]
[PlyCount "145"]
[EventDate "2019.08.19"]
[EventType "team-tourn"]
[EventCountry "ESP"]
[SourceTitle "playchess.com"]
[Source "ChessBase"]
[SourceQuality "1"]
[TimeControl "5400+30"]

1. e4 {[%emt 0:00:00]} c5 {[%emt 0:00:46]} 2. c4 {[%emt 0:00:00]} Nc6 {[%emt 0:00:13]} 3. Nc3 {[%emt 0:00:00]} g6 {[%emt 0:00:11]} 4. g3 {[%emt 0:00:10]} Bg7 {[%emt 0:00:06]} 5. Bg2 {[%emt 0:00:07]} Nf6 {[%emt 0:00:11]} 6. Nge2 {[%emt 0:00:17]} O-O {[%emt 0:00:12]} 7. O-O {[%emt 0:00:12]} Rb8 {[%emt 0:01:48]} 8. a3 {[%emt 0:02:41]} a6 {[%emt 0:02:54]} 9. b4 {[%emt 0:01:19]} d6 {[%emt 0:06:53]} 10. Rb1 {[%emt 0:01:16]} Bg4 {[%emt 0:09:57]} 11. h3 {[%emt 0:02:05]} Bxe2 {[%emt 0:03:15]} 12. Nxe2 {[%emt 0:01:29]} Ne8 {[%emt 0:00:38]} 13. Kh2 {[%emt 0:07:14]} Nc7 {[%emt 0:01:13]} 14. f4 {[%emt 0:03:54]} Ne6 {[%emt 0:02:04]} 15. b5 {[%emt 0:05:17]} axb5 {[%emt 0:00:27]} 16. cxb5 {[%emt 0:02:37]} Ncd4 {[%emt 0:00:38]} 17. Nc3 {[%emt 0:00:31]} c4 {[%emt 0:01:13]} 18. a4 {[%emt 0:05:56]} Nc5 {[%emt 0:00:22]} 19. Ba3 {[%emt 0:00:19]} Ndb3 {[%emt 0:01:07]} 20. f5 {[%emt 0:07:14]} Qa5 {[%emt 0:00:41]} 21. Nd5 {[%emt 0:14:01]} Rfe8 {[%emt 0:01:21]} 22. Bb4 {[%emt 0:20:10]} Qxa4 {[%emt 0:02:13]} 23. Bxc5 {[%emt 0:00:55]} dxc5 {[%emt 0:02:26]} 24. fxg6 {[%emt 0:02:02]} fxg6 {[%emt 0:02:05]} 25. e5 {[%emt 0:07:12]} Rbd8 {[%emt 0:02:16]} 26. Qf3 {[%emt 0:02:23]} Nxd2 {[%emt 0:00:28]} 27. Qf7+ {[%emt 0:02:56]} Kh8 {[%emt 0:00:01]} 28. Rf4 {[%emt 0:01:09]} Nxb1 {[%emt 0:03:07]} 29. Nxe7 {[%emt 0:00:35]} Qc2 {[%emt 0:00:04]} 30. Rxc4 {[%emt 0:06:26]} Rxe7 {[%emt 0:01:37]} 31. Qxe7 {[%emt 0:00:22]} Qxc4 {[%emt 0:00:24]} 32. Qxd8+ {[%emt 0:00:14]} Qg8 {[%emt 0:00:01]} 33. Qd3 {[%emt 0:03:31]} Bxe5 {[%emt 0:00:10]} 34. Qxb1 {[%emt 0:00:08]} b6 {[%emt 0:00:04]} 35. Qe4 {[%emt 0:00:36]} Qb8 {[%emt 0:00:33]} 36. Qg4 {[%emt 0:00:40]} Qc7 {[%emt 0:00:10]} 37. Bd5 {[%emt 0:01:03]} Kg7 {[%emt 0:00:12]} 38. Kg2 {[%emt 0:00:23]} Qd6 {[%emt 0:00:14]} 39. Bc4 {[%emt 0:00:24]} Qd2+ {[%emt 0:00:07]} 40. Be2 {[%emt 0:00:16]} h5 {[%emt 0:00:54]} 41. Qe4 {[%emt 0:00:01]} h4 {[%emt 0:00:26]} 42. Qxe5+ {[%emt 0:00:16]} Kh7 {[%emt 0:00:07]} 43. gxh4 {[%emt 0:00:37]} Qc2 {[%emt 0:00:27]} 44. h5 {[%emt 0:00:25]} gxh5 {[%emt 0:00:07]} 45. Qxh5+ {[%emt 0:00:49]} Kg7 {[%emt 0:00:04]} 46. Qg4+ {[%emt 0:00:17]} Kf6 {[%emt 0:00:05]} 47. h4 {[%emt 0:00:08]} Qb2 {[%emt 0:01:01]} 48. h5 {[%emt 0:00:17]} Qd2 {[%emt 0:00:07]} 49. Kf3 {[%emt 0:00:35]} Qd5+ {[%emt 0:00:11]} 50. Kf2 {[%emt 0:00:13]} Qd2 {[%emt 0:00:12]} 51. Qe4 {[%emt 0:00:52]} Kf7 {[%emt 0:00:17]} 52. Qf5+ {[%emt 0:01:02]} Ke7 {[%emt 0:00:08]} 53. Kf3 {[%emt 0:00:24]} Qc3+ {[%emt 0:00:04]} 54. Bd3 {[%emt 0:00:17]} Qc1 {[%emt 0:00:16]} 55. Qe5+ {[%emt 0:00:23]} Kf8 {[%emt 0:00:23]} 56. Qf4+ {[%emt 0:00:05]} Qxf4+ {[%emt 0:00:05]} 57. Kxf4 {[%emt 0:00:07]} Kg7 {[%emt 0:00:01]} 58. Ke5 {[%emt 0:00:10]} Kh6 {[%emt 0:00:01]} 59. Kd6 {[%emt 0:00:11]} Kxh5 {[%emt 0:00:04]} 60. Kc6 {[%emt 0:00:03]} Kg5 {[%emt 0:00:01]} 61. Kxb6 {[%emt 0:00:24]} Kf6 {[%emt 0:00:02]} 62. Kc7 {[%emt 0:00:09]} Ke5 {[%emt 0:00:01]} 63. b6 {[%emt 0:00:08]} Kd4 {[%emt 0:00:01]} 64. Bh7 {[%emt 0:00:07]} c4 {[%emt 0:00:03]} 65. b7 {[%emt 0:00:03]} c3 {[%emt 0:00:02]} 66. b8=Q {[%emt 0:00:13]} Ke3 {[%emt 0:00:01]} 67. Qd8 {[%emt 0:00:10]} Ke2 {[%emt 0:00:08]} 68. Qd3+ {[%emt 0:00:07]} Kf2 {[%emt 0:00:01]} 69. Qxc3 {[%emt 0:00:11]} Ke2 {[%emt 0:00:01]} 70. Kd6 {[%emt 0:00:10]} Kf1 {[%emt 0:00:02]} 71. Qd2 {[%emt 0:00:12]} Kg1 {[%emt 0:00:01]} 72. Ke5 {[%emt 0:00:07]} Kf1 {[%emt 0:00:01]} 73. Kf4 1-0

[Event "ESP-chT 2nd Division 2019"]
[Site "Linares"]
[Date "2019.08.23"]
[Round "7.34"]
[White "Garcia Sobrino, David"]
[Black "Cabeza Alfonso, Ricardo"]
[Result "1-0"]
[ECO "B40"]
[WhiteElo "2195"]
[BlackElo "1999"]
[Annotator "ChessBase"]
[PlyCount "91"]
[EventDate "2019.08.19"]
[EventType "team-tourn"]
[EventCountry "ESP"]
[SourceTitle "playchess.com"]
[Source "ChessBase"]
[SourceQuality "1"]
[TimeControl "5400+30"]

1. e4 {[%emt 0:01:13]} c5 {[%emt 0:00:00]} 2. Nf3 {[%emt 0:00:06]} e6 {[%emt 0:00:00]} 3. b3 {[%emt 0:00:06]} Nc6 {[%emt 0:00:11]} 4. Bb2 {[%emt 0:00:45]} d6 {[%emt 0:00:57]} 5. d4 {[%emt 0:07:22]} cxd4 {[%emt 0:00:30]} 6. Nxd4 {[%emt 0:00:08]} Nf6 {[%emt 0:00:56]} 7. Nxc6 {[%emt 0:05:22]} bxc6 {[%emt 0:00:35]} 8. e5 {[%emt 0:01:15]} Nd5 {[%emt 0:06:13]} 9. exd6 {[%emt 0:04:24]} Bxd6 {[%emt 0:10:54]} 10. Bd3 {[%emt 0:11:01]} Qh4 {[%emt 0:08:26]} 11. Nd2 {[%emt 0:08:22]} O-O {[%emt 0:01:27]} 12. a3 {[%emt 0:03:04]} e5 {[%emt 0:03:38]} 13. O-O Bg4 {[%emt 0:10:29]} 14. Be2 {[%emt 0:16:26]} Bxe2 {[%emt 0:03:44]} 15. Qxe2 {[%emt 0:00:15]} Rae8 {[%emt 0:04:16]} 16. Ne4 {[%emt 0:07:23]} Bc7 {[%emt 0:02:07]} 17. g3 {[%emt 0:06:43]} Qh6 {[%emt 0:02:54]} 18. c4 {[%emt 0:03:15]} Ne7 {[%emt 0:01:19]} 19. Nc5 {[%emt 0:02:56]} f5 {[%emt 0:00:59]} 20. Nd7 {[%emt 0:02:11]} f4 {[%emt 0:01:14]} 21. Nxf8 {[%emt 0:01:44]} Rxf8 {[%emt 0:00:12]} 22. gxf4 {[%emt 0:07:59]} Rxf4 {[%emt 0:05:59]} 23. Bc1 {[%emt 0:01:28]} Qg6+ {[%emt 0:18:06]} 24. Kh1 {[%emt 0:00:05]} Rg4 25. f3 {[%emt 0:01:14]} Rh4 {[%emt 0:02:33]} 26. Rg1 {[%emt 0:00:35]} Qf7 {[%emt 0:02:07]} 27. Bg5 {[%emt 0:01:15]} Rh5 {[%emt 0:02:15]} 28. Bxe7 {[%emt 0:02:35]} e4 {[%emt 0:01:07]} 29. f4 {[%emt 0:01:10]} Bxf4 {[%emt 0:01:21]} 30. Rg2 {[%emt 0:00:38]} Bxh2 {[%emt 0:03:16]} 31. Rxh2 {[%emt 0:00:34]} Rxh2+ {[%emt 0:00:28]} 32. Qxh2 {[%emt 0:00:20]} Qf3+ {[%emt 0:00:25]} 33. Qg2 {[%emt 0:00:27]} Qh5+ {[%emt 0:00:16]} 34. Kg1 {[%emt 0:00:45]} Qe5 {[%emt 0:00:08]} 35. Re1 {[%emt 0:00:33]} Qxe7 {[%emt 0:00:21]} 36. Qxe4 {[%emt 0:00:23]} Qg5+ {[%emt 0:00:08]} 37. Kf2 {[%emt 0:01:13]} h6 {[%emt 0:00:19]} 38. Qe8+ {[%emt 0:00:55]} Kh7 {[%emt 0:00:09]} 39. Qe4+ {[%emt 0:00:03]} Kg8 {[%emt 0:00:08]} 40. Qxc6 {[%emt 0:00:20]} Qh4+ {[%emt 0:00:10]} 41. Kf1 {[%emt 0:00:18]} Qf4+ {[%emt 0:00:53]} 42. Ke2 {[%emt 0:00:18]} Qe5+ {[%emt 0:00:18]} 43. Kf2 {[%emt 0:00:33]} Qh2+ {[%emt 0:00:26]} 44. Qg2 {[%emt 0:00:21]} Qf4+ {[%emt 0:00:11]} 45. Qf3 {[%emt 0:00:22]} Qh2+ {[%emt 0:00:11]} 46. Kf1 {[%emt 0:00:10]} 1-0

[Event "ESP-chT 2nd Division 2019"]
[Site "Linares"]
[Date "2019.08.23"]
[Round "7.35"]
[White "Arce Calva, Elvira"]
[Black "Lorenzo Serrano, Henar"]
[Result "1-0"]
[ECO "B01"]
[WhiteElo "1838"]
[BlackElo "1719"]
[Annotator "NA"]
[PlyCount "113"]
[EventDate "2019.08.19"]
[EventType "team-tourn"]
[EventCountry "ESP"]
[SourceTitle "playchess.com"]
[Source "ChessBase"]
[SourceQuality "1"]
[TimeControl "5400+30"]

1. e4 {[%emt 0:00:00]} d5 {[%emt 0:00:43]} 2. exd5 {[%emt 0:00:00]} Nf6 {[%emt 0:00:15]} 3. d4 {[%emt 0:05:00]} Bg4 {[%emt 0:00:06]} 4. Be2 {[%emt 0:05:12]} Bxe2 {[%emt 0:01:34]} 5. Qxe2 {[%emt 0:01:47]} Qxd5 {[%emt 0:01:11]} 6. Nf3 {[%emt 0:02:58]} Nc6 {[%emt 0:02:10]} 7. O-O {[%emt 0:04:53]} O-O-O {[%emt 0:02:37]} 8. c3 {[%emt 0:06:56]} Qh5 {[%emt 0:04:13]} 9. Re1 {[%emt 0:07:06]} e6 {[%emt 0:04:05]} 10. Nbd2 {[%emt 0:09:26]} g5 {[%emt 0:05:20]} 11. Ne5 {[%emt 0:08:48]} Nxe5 {[%emt 0:12:57]} 12. Qxh5 {[%emt 0:01:33]} Nxh5 {[%emt 0:00:06]} 13. Rxe5 {[%emt 0:00:43]} Nf4 {[%emt 0:01:28]} 14. Re3 {[%emt 0:06:52]} h5 {[%emt 0:06:46]} 15. Nb3 {[%emt 0:09:04]} Bg7 {[%emt 0:07:10]} 16. Re4 {[%emt 0:02:11]} f5 {[%emt 0:02:51]} 17. Re1 {[%emt 0:01:59]} Rd6 {[%emt 0:12:22]} 18. Nc5 {[%emt 0:02:43]} Re8 {[%emt 0:05:29]} 19. Bxf4 {[%emt 0:04:42]} gxf4 {[%emt 0:00:11]} 20. Nd3 {[%emt 0:00:54]} Bh6 {[%emt 0:03:52]} 21. Re2 {[%emt 0:02:05]} b6 {[%emt 0:03:37]} 22. Rae1 {[%emt 0:00:24]} f3 {[%emt 0:04:05]} 23. gxf3 {[%emt 0:01:10]} Rg8+ {[%emt 0:00:23]} 24. Kf1 {[%emt 0:00:28]} Kd7 {[%emt 0:01:04]} 25. Ne5+ {[%emt 0:02:23]} Ke7 {[%emt 0:00:28]} 26. Nc4 {[%emt 0:03:21]} Rc6 {[%emt 0:00:56]} 27. d5 {[%emt 0:04:32]} Rxc4 {[%emt 0:00:10]} 28. Rxe6+ {[%emt 0:00:06]} Kd7 {[%emt 0:00:21]} 29. Rxh6 {[%emt 0:00:08]} Rh4 {[%emt 0:00:17]} 30. Ree6 {[%emt 0:00:58]} Rxh2 {[%emt 0:02:13]} 31. Rh7+ {[%emt 0:00:52]} Kd8 {[%emt 0:00:21]} 32. Ree7 {[%emt 0:03:10]} Rgg2 {[%emt 0:02:30]} 33. Rd7+ {[%emt 0:01:25]} Ke8 {[%emt 0:00:32]} 34. Ke2 {[%emt 0:01:05]} Rxf2+ {[%emt 0:01:38]} 35. Ke3 {[%emt 0:00:22]} Re2+ {[%emt 0:01:18]} 36. Kf4 {[%emt 0:01:10]} Rh4+ {[%emt 0:04:36]} 37. Kg5 {[%emt 0:00:12]} Rc4 {[%emt 0:02:08]} 38. Kf6 {[%emt 0:00:35]} h4 {[%emt 0:01:56]} 39. Rdg7 Kd8 {[%emt 0:00:21]} 40. Rd7+ {[%emt 0:02:07]} Ke8 {[%emt 0:00:10]} 41. Rdg7 {[%emt 0:00:26]} Kd8 {[%emt 0:00:06]} 42. Rd7+ {[%emt 0:00:01]} Ke8 {[%emt 0:00:08]} 43. Kxf5 {[%emt 0:01:07]} h3 {[%emt 0:01:37]} 44. Rxc7 {[%emt 0:00:32]} Rxc7 {[%emt 0:00:16]} 45. Rxc7 {[%emt 0:00:02]} h2 {[%emt 0:00:40]} 46. Rh7 {[%emt 0:00:02]} Rxb2 {[%emt 0:00:41]} 47. Ke6 {[%emt 0:01:22]} Re2+ {[%emt 0:00:06]} 48. Kd6 {[%emt 0:00:29]} Rxa2 {[%emt 0:01:06]} 49. Rh8+ {[%emt 0:00:23]} Kf7 {[%emt 0:00:10]} 50. Kd7 {[%emt 0:00:12]} Rd2 {[%emt 0:01:30]} 51. d6 {[%emt 0:00:23]} a5 {[%emt 0:00:25]} 52. Kc7 {[%emt 0:00:52]} a4 {[%emt 0:02:21]} 53. d7 {[%emt 0:00:35]} a3 {[%emt 0:00:11]} 54. Rxh2 {[%emt 0:00:32]} a2 {[%emt 0:01:15]} 55. Rh1 {[%emt 0:00:38]} Ke7 {[%emt 0:01:29]} 56. Re1+ {[%emt 0:00:08]} Kf7 {[%emt 0:00:45]} 57. d8=Q {[%emt 0:00:11]} 1-0

[Event "ESP-chT 2nd Division 2019"]
[Site "Linares"]
[Date "2019.08.23"]
[Round "7.36"]
[White "Gonzalez Trigal, Jose Luis"]
[Black "Narciso Dublan, Marc"]
[Result "1-0"]
[ECO "D35"]
[WhiteElo "2352"]
[BlackElo "2483"]
[Annotator "ChessBase"]
[PlyCount "107"]
[EventDate "2019.08.19"]
[EventType "team-tourn"]
[EventCountry "ESP"]
[SourceTitle "playchess.com"]
[Source "ChessBase"]
[SourceQuality "1"]
[TimeControl "5400+30"]

1. d4 {[%emt 0:00:00]} d5 {[%emt 0:00:00]} 2. c4 {[%emt 0:00:00]} e6 {[%emt 0:00:09]} 3. Nc3 {[%emt 0:00:17]} Nf6 {[%emt 0:00:32]} 4. Nf3 {[%emt 0:00:26]} Nbd7 {[%emt 0:00:24]} 5. cxd5 {[%emt 0:03:33]} exd5 {[%emt 0:00:13]} 6. Bf4 {[%emt 0:00:25]} c6 {[%emt 0:00:24]} 7. e3 {[%emt 0:02:55]} Nh5 {[%emt 0:00:50]} 8. Bg5 {[%emt 0:01:26]} Be7 {[%emt 0:00:14]} 9. Bxe7 {[%emt 0:00:16]} Qxe7 {[%emt 0:00:06]} 10. Be2 {[%emt 0:02:08]} Nhf6 {[%emt 0:04:31]} 11. O-O {[%emt 0:01:46]} O-O {[%emt 0:00:11]} 12. Qc2 {[%emt 0:01:24]} Re8 {[%emt 0:07:18]} 13. Rab1 {[%emt 0:03:02]} Nb6 {[%emt 0:01:49]} 14. Rfe1 {[%emt 0:06:51]} Be6 {[%emt 0:07:39]} 15. Bd3 {[%emt 0:08:25]} g6 {[%emt 0:03:22]} 16. Na4 {[%emt 0:06:13]} Nxa4 {[%emt 0:05:14]} 17. Qxa4 {[%emt 0:00:03]} Ne4 {[%emt 0:00:25]} 18. Qc2 {[%emt 0:07:19]} Bf5 {[%emt 0:04:14]} 19. b4 {[%emt 0:02:58]} Rac8 {[%emt 0:03:17]} 20. Nd2 {[%emt 0:08:03]} Nd6 {[%emt 0:03:11]} 21. a4 {[%emt 0:04:54]} Bxd3 {[%emt 0:02:18]} 22. Qxd3 {[%emt 0:00:03]} a6 {[%emt 0:00:10]} 23. Nb3 {[%emt 0:04:20]} Rc7 {[%emt 0:02:48]} 24. Nc5 {[%emt 0:02:15]} Qg5 {[%emt 0:07:28]} 25. Qd1 {[%emt 0:04:05]} h5 {[%emt 0:06:57]} 26. Qf3 {[%emt 0:02:56]} h4 {[%emt 0:00:21]} 27. g3 {[%emt 0:05:54]} f6 {[%emt 0:11:48]} 28. Qf4 {[%emt 0:03:58]} Qxf4 {[%emt 0:00:27]} 29. gxf4 {[%emt 0:00:02]} g5 {[%emt 0:00:48]} 30. fxg5 {[%emt 0:01:36]} fxg5 {[%emt 0:00:25]} 31. Nd3 {[%emt 0:02:46]} Rf8 {[%emt 0:03:24]} 32. h3 {[%emt 0:02:08]} Nc4 {[%emt 0:03:17]} 33. Re2 {[%emt 0:01:43]} Kh7 {[%emt 0:03:01]} 34. Kh2 {[%emt 0:01:18]} Rcf7 {[%emt 0:01:42]} 35. Rg1 {[%emt 0:00:57]} Rf5 {[%emt 0:03:33]} 36. Rg4 {[%emt 0:01:23]} Re8 {[%emt 0:00:21]} 37. Kg2 {[%emt 0:03:11]} Kh6 {[%emt 0:01:53]} 38. e4 {[%emt 0:02:40]} Nd6 {[%emt 0:01:03]} 39. e5 {[%emt 0:00:47]} Nf7 {[%emt 0:09:45]} 40. b5 {[%emt 0:01:26]} axb5 {[%emt 0:01:39]} 41. axb5 {[%emt 0:00:02]} Nd8 {[%emt 0:01:01]} 42. Rb2 {[%emt 0:00:48]} Ne6 {[%emt 0:01:33]} 43. bxc6 {[%emt 0:01:02]} bxc6 {[%emt 0:00:02]} 44. Rc2 {[%emt 0:00:29]} Rc8 {[%emt 0:00:51]} 45. f3 {[%emt 0:01:44]} Kh5 {[%emt 0:01:14]} 46. Rc3 {[%emt 0:00:57]} Rf7 {[%emt 0:00:17]} 47. Kf2 {[%emt 0:01:36]} Ra7 {[%emt 0:00:43]} 48. f4 {[%emt 0:00:47]} Ra2+ {[%emt 0:00:20]} 49. Kg1 {[%emt 0:00:37]} Nxd4 {[%emt 0:00:37]} 50. Rxg5+ {[%emt 0:00:32]} Kh6 {[%emt 0:00:01]} 51. Kf1 {[%emt 0:00:26]} Rb8 {[%emt 0:00:54]} 52. e6 {[%emt 0:00:32]} Ne2 {[%emt 0:00:42]} 53. Rxc6 {[%emt 0:00:28]} Rb1+ {[%emt 0:00:18]} 54. Ne1 {[%emt 0:00:23]} 1-0